[Event "Betsys MČR v online bleskovém šachu 2021"]
[Site "Chess.com"]
[Date "2021.04.17"]
[Round "6"]
[White "MrNikdo"]
[Black "Michaela1994"]
[Result "1-0"]
[WhiteElo "2039"]
[BlackElo "1628"]
[TimeControl "180+1"]
[EndTime "9:57:02 PDT"]
[Termination "Uživatel MrNikdo zvítězil po vzdání soupeře"]

1. e4 {[%clk 0:03:00.9]} 1... e6 {[%clk 0:02:59.9]} 2. d4 {[%clk 0:02:55]} 2...
d5 {[%clk 0:02:59.6]} 3. Nc3 {[%clk 0:02:54.9]} 3... Bb4 {[%clk 0:02:58.3]} 4.
e5 {[%clk 0:02:54.4]} 4... c5 {[%clk 0:02:57.5]} 5. a3 {[%clk 0:02:54.7]} 5...
cxd4 {[%clk 0:02:57.3]} 6. axb4 {[%clk 0:02:28.4]} 6... dxc3 {[%clk 0:02:56.3]}
7. Qg4 {[%clk 0:02:24.3]} 7... Ne7 {[%clk 0:02:56.3]} 8. Qxg7 {[%clk 0:02:22.6]}
8... Rg8 {[%clk 0:02:56]} 9. Qxh7 {[%clk 0:02:22.7]} 9... Qc7 {[%clk 0:02:56]}
10. Ne2 {[%clk 0:02:18.8]} 10... Qxe5 {[%clk 0:02:52.1]} 11. bxc3 {[%clk
0:02:18.6]} 11... Nbc6 {[%clk 0:02:46]} 12. Bf4 {[%clk 0:02:17]} 12... Qf6
{[%clk 0:02:38.9]} 13. Qd3 {[%clk 0:02:07]} 13... Nxb4 {[%clk 0:02:31.8]} 14.
Qb5+ {[%clk 0:01:59.7]} 14... Nec6 {[%clk 0:02:31.9]} 15. Qa4 {[%clk 0:01:26.9]}
15... Na6 {[%clk 0:02:26.3]} 16. Be3 {[%clk 0:01:20.6]} 16... Nc7 {[%clk
0:02:10.5]} 17. g3 {[%clk 0:01:10.5]} 17... Qf3 {[%clk 0:02:04.6]} 18. Rg1
{[%clk 0:01:09.6]} 18... Bd7 {[%clk 0:01:49.7]} 19. Bg2 {[%clk 0:01:07.7]} 19...
Qh5 {[%clk 0:01:48.2]} 20. Qf4 {[%clk 0:01:03.5]} 20... Nb5 {[%clk 0:01:33.1]}
21. h4 {[%clk 0:00:50.5]} 21... Qh8 {[%clk 0:01:24.2]} 22. Kd2 {[%clk
0:00:44.5]} 22... Rc8 {[%clk 0:01:14.2]} 23. Rgb1 {[%clk 0:00:43.3]} 23... a6
{[%clk 0:01:12.4]} 24. c4 {[%clk 0:00:43.1]} 24... dxc4 {[%clk 0:01:10.2]} 25.
c3 {[%clk 0:00:41.4]} 25... Qh7 {[%clk 0:00:52.8]} 26. Be4 {[%clk 0:00:40.3]}
26... Qg7 {[%clk 0:00:50.5]} 27. h5 {[%clk 0:00:36.4]} 27... Rd8 {[%clk
0:00:47.8]} 28. h6 {[%clk 0:00:36.3]} 28... Bc8+ {[%clk 0:00:46]} 29. Kc2 {[%clk
0:00:36.4]} 29... Qh8 {[%clk 0:00:38.9]} 30. Rxb5 {[%clk 0:00:31.1]} 30... axb5
{[%clk 0:00:33.8]} 31. Qc7 {[%clk 0:00:28.9]} 31... Qe5 {[%clk 0:00:23.8]} 32.
Bxc6+ {[%clk 0:00:28]} 1-0

[Event "Betsys MČR v online bleskovém šachu 2021"]
[Site "Chess.com"]
[Date "2021.04.17"]
[Round "6"]
[White "Bancroft"]
[Black "SanyH"]
[Result "1-0"]
[WhiteElo "1928"]
[BlackElo "1602"]
[TimeControl "180+1"]
[EndTime "9:57:02 PDT"]
[Termination "Uživatel Bancroft zvítězil matem"]

1. Nf3 {[%clk 0:03:00.9]} 1... Nf6 {[%clk 0:02:56.6]} 2. g3 {[%clk 0:03:00.7]}
2... g6 {[%clk 0:02:56.1]} 3. Bg2 {[%clk 0:03:01.2]} 3... Bg7 {[%clk 0:02:56.5]}
4. O-O {[%clk 0:03:02]} 4... O-O {[%clk 0:02:56.6]} 5. d4 {[%clk 0:03:02.2]}
5... d5 {[%clk 0:02:56.5]} 6. c4 {[%clk 0:03:02.2]} 6... c6 {[%clk 0:02:56.1]}
7. Nbd2 {[%clk 0:03:00.4]} 7... e6 {[%clk 0:02:41.8]} 8. Re1 {[%clk 0:02:59.9]}
8... Nbd7 {[%clk 0:02:41.6]} 9. e4 {[%clk 0:02:59.7]} 9... c5 {[%clk 0:02:38.1]}
10. cxd5 {[%clk 0:02:57.5]} 10... exd5 {[%clk 0:02:36.5]} 11. e5 {[%clk
0:02:51.1]} 11... Ne8 {[%clk 0:02:34.6]} 12. e6 {[%clk 0:02:43.2]} 12... fxe6
{[%clk 0:02:12]} 13. Rxe6 {[%clk 0:02:44.1]} 13... cxd4 {[%clk 0:02:09.7]} 14.
Nb3 {[%clk 0:02:42.1]} 14... Ndf6 {[%clk 0:01:53.6]} 15. Re1 {[%clk 0:02:40]}
15... Ne4 {[%clk 0:01:50.8]} 16. Nbxd4 {[%clk 0:02:38.2]} 16... Qb6 {[%clk
0:01:46.9]} 17. Nb3 {[%clk 0:02:24]} 17... Qxf2+ {[%clk 0:01:42.6]} 18. Kh1
{[%clk 0:02:22.1]} 18... Qb6 {[%clk 0:01:17]} 19. Qxd5+ {[%clk 0:02:20.4]} 19...
Kh8 {[%clk 0:01:05.8]} 20. Qxe4 {[%clk 0:02:20.4]} 20... Bf5 {[%clk 0:01:00.1]}
21. Qe3 {[%clk 0:02:13.7]} 21... Qc7 {[%clk 0:00:50.3]} 22. Qc5 {[%clk
0:02:05.8]} 22... Qd7 {[%clk 0:00:45.7]} 23. Bf4 {[%clk 0:01:57.1]} 23... Nf6
{[%clk 0:00:40.9]} 24. Rad1 {[%clk 0:01:56]} 24... Qa4 {[%clk 0:00:37.6]} 25.
Qa5 {[%clk 0:01:42.6]} 25... Qc6 {[%clk 0:00:35.8]} 26. Ne5 {[%clk 0:01:35.7]}
26... Qc2 {[%clk 0:00:35.2]} 27. Rd2 {[%clk 0:01:30.3]} 27... Qc8 {[%clk
0:00:33.9]} 28. Red1 {[%clk 0:01:24.1]} 28... Ne4 {[%clk 0:00:33.3]} 29. Rd8
{[%clk 0:00:46]} 29... Rxd8 {[%clk 0:00:31.8]} 30. Rxd8+ {[%clk 0:00:44.6]}
30... Qxd8 {[%clk 0:00:31]} 31. Nf7+ {[%clk 0:00:44.8]} 31... Kg8 {[%clk
0:00:30.4]} 32. Nxd8 {[%clk 0:00:45.1]} 32... Nf2+ {[%clk 0:00:28.2]} 33. Kg1
{[%clk 0:00:44.3]} 33... Nd3 {[%clk 0:00:27]} 34. Qd5+ {[%clk 0:00:41.1]} 34...
Kh8 {[%clk 0:00:24.3]} 35. Nf7+ {[%clk 0:00:41]} 35... Kg8 {[%clk 0:00:22.9]}
36. Nh6+ {[%clk 0:00:35.8]} 36... Kh8 {[%clk 0:00:20.4]} 37. Qg8+ {[%clk
0:00:34.8]} 37... Rxg8 {[%clk 0:00:18.3]} 38. Nf7# {[%clk 0:00:35.3]} 1-0

[Event "Betsys MČR v online bleskovém šachu 2021"]
[Site "Chess.com"]
[Date "2021.04.17"]
[Round "6"]
[White "CrisBenton4"]
[Black "SayQueen"]
[Result "0-1"]
[WhiteElo "1453"]
[BlackElo "1996"]
[TimeControl "180+1"]
[EndTime "9:57:03 PDT"]
[Termination "Uživatel SayQueen zvítězil na čas"]

1. Nf3 {[%clk 0:03:00.9]} 1... Nf6 {[%clk 0:02:57.7]} 2. g3 {[%clk 0:02:59.7]}
2... d6 {[%clk 0:02:47.7]} 3. Bg2 {[%clk 0:02:58.6]} 3... e5 {[%clk 0:02:47.1]}
4. d3 {[%clk 0:02:58.4]} 4... h6 {[%clk 0:02:45.4]} 5. O-O {[%clk 0:02:58.1]}
5... Nc6 {[%clk 0:02:43.5]} 6. c4 {[%clk 0:02:56.4]} 6... Bg4 {[%clk 0:02:39.5]}
7. Nc3 {[%clk 0:02:53.2]} 7... Qd7 {[%clk 0:02:37.6]} 8. Bd2 {[%clk 0:02:48]}
8... Bh3 {[%clk 0:02:36.4]} 9. a3 {[%clk 0:02:47.1]} 9... Bxg2 {[%clk
0:02:33.2]} 10. Kxg2 {[%clk 0:02:47.7]} 10... a5 {[%clk 0:02:32.5]} 11. Nd5
{[%clk 0:02:36.5]} 11... Nxd5 {[%clk 0:02:27.3]} 12. cxd5 {[%clk 0:02:36.1]}
12... Ne7 {[%clk 0:02:27.4]} 13. e4 {[%clk 0:02:35]} 13... g6 {[%clk 0:02:20.6]}
14. Rc1 {[%clk 0:02:31.6]} 14... Bg7 {[%clk 0:02:17.2]} 15. Qc2 {[%clk
0:02:25.4]} 15... c6 {[%clk 0:02:15.8]} 16. dxc6 {[%clk 0:02:21.2]} 16... bxc6
{[%clk 0:02:11.3]} 17. Qb3 {[%clk 0:01:57]} 17... O-O {[%clk 0:02:08.8]} 18.
Rfd1 {[%clk 0:01:39.4]} 18... Rfb8 {[%clk 0:02:07.3]} 19. Qc2 {[%clk 0:01:38.8]}
19... Qe6 {[%clk 0:01:51.5]} 20. Be3 {[%clk 0:01:35.5]} 20... f5 {[%clk
0:01:42.4]} 21. exf5 {[%clk 0:01:15.2]} 21... gxf5 {[%clk 0:01:41.3]} 22. Bd2
{[%clk 0:01:02.1]} 22... Qd5 {[%clk 0:01:31.3]} 23. b4 {[%clk 0:00:52.6]} 23...
axb4 {[%clk 0:01:27.5]} 24. axb4 {[%clk 0:00:49.6]} 24... Ra2 {[%clk 0:01:25.4]}
25. Qc4 {[%clk 0:00:48.2]} 25... e4 {[%clk 0:01:16.3]} 26. Qxd5+ {[%clk
0:00:46.1]} 26... cxd5 {[%clk 0:01:14.3]} 27. dxe4 {[%clk 0:00:33.8]} 27... fxe4
{[%clk 0:01:13.3]} 28. Ne1 {[%clk 0:00:30.2]} 28... d4 {[%clk 0:01:10.3]} 29.
Nc2 {[%clk 0:00:28.1]} 29... Nd5 {[%clk 0:01:02.1]} 30. b5 {[%clk 0:00:09.5]}
30... Rxb5 {[%clk 0:00:54.5]} 31. Ne1 {[%clk 0:00:04.3]} 31... e3 {[%clk
0:00:47.2]} 32. fxe3 {[%clk 0:00:03.5]} 32... dxe3 {[%clk 0:00:46.9]} 33. Rc8+
{[%clk 0:00:03]} 33... Kh7 {[%clk 0:00:45]} 0-1

[Event "Betsys MČR v online bleskovém šachu 2021"]
[Site "Chess.com"]
[Date "2021.04.17"]
[Round "6"]
[White "Eliska0107"]
[Black "Kamilotka"]
[Result "1-0"]
[WhiteElo "1994"]
[BlackElo "1624"]
[TimeControl "180+1"]
[EndTime "9:57:03 PDT"]
[Termination "Uživatel Eliska0107 zvítězil matem"]

1. e4 {[%clk 0:02:49.6]} 1... e5 {[%clk 0:02:59.2]} 2. Nf3 {[%clk 0:02:48.7]}
2... Nc6 {[%clk 0:02:59.3]} 3. Bb5 {[%clk 0:02:47.6]} 3... d6 {[%clk 0:02:58.9]}
4. O-O {[%clk 0:02:46.3]} 4... Nf6 {[%clk 0:02:58.8]} 5. Re1 {[%clk 0:02:45.7]}
5... Bd7 {[%clk 0:02:57.9]} 6. c3 {[%clk 0:02:45.2]} 6... Be7 {[%clk 0:02:58.1]}
7. d4 {[%clk 0:02:45.2]} 7... exd4 {[%clk 0:02:58.3]} 8. cxd4 {[%clk 0:02:44.9]}
8... O-O {[%clk 0:02:58.1]} 9. Nc3 {[%clk 0:02:44.7]} 9... Bg4 {[%clk
0:02:57.9]} 10. h3 {[%clk 0:02:35.8]} 10... Bh5 {[%clk 0:02:57.3]} 11. Bxc6
{[%clk 0:02:34.6]} 11... bxc6 {[%clk 0:02:55.9]} 12. Bf4 {[%clk 0:02:32.2]}
12... h6 {[%clk 0:02:53.9]} 13. Bg3 {[%clk 0:02:31.9]} 13... Nh7 {[%clk
0:02:51.1]} 14. Qd3 {[%clk 0:02:30.5]} 14... Ng5 {[%clk 0:02:43.7]} 15. Nh2
{[%clk 0:02:14.6]} 15... Ne6 {[%clk 0:02:31.7]} 16. Rac1 {[%clk 0:02:08.4]}
16... c5 {[%clk 0:02:24.3]} 17. d5 {[%clk 0:02:02.4]} 17... Nd4 {[%clk
0:02:21.5]} 18. f3 {[%clk 0:01:57.3]} 18... Bg5 {[%clk 0:02:14.8]} 19. Rcd1
{[%clk 0:01:55.7]} 19... Bg6 {[%clk 0:02:07.3]} 20. Bf2 {[%clk 0:01:52.2]} 20...
Bf6 {[%clk 0:01:55.3]} 21. Ng4 {[%clk 0:01:51.6]} 21... Be5 {[%clk 0:01:47.5]}
22. Rc1 {[%clk 0:01:32.3]} 22... f5 {[%clk 0:01:35.7]} 23. Nxe5 {[%clk
0:01:31.7]} 23... dxe5 {[%clk 0:01:31.2]} 24. Ne2 {[%clk 0:01:24.3]} 24... fxe4
{[%clk 0:01:13.7]} 25. fxe4 {[%clk 0:01:23.7]} 25... Nxe2+ {[%clk 0:01:12.9]}
26. Rxe2 {[%clk 0:01:20.6]} 26... Qd6 {[%clk 0:01:02.9]} 27. Bxc5 {[%clk
0:01:18]} 27... Qf6 {[%clk 0:00:49.4]} 28. Bxf8 {[%clk 0:01:07.1]} 28... Rxf8
{[%clk 0:00:49]} 29. Rxc7 {[%clk 0:01:01.4]} 29... Qf4 {[%clk 0:00:42.8]} 30.
Rc6 {[%clk 0:00:57.9]} 30... Bh7 {[%clk 0:00:38.8]} 31. d6 {[%clk 0:00:54.7]}
31... Qf1+ {[%clk 0:00:35]} 32. Kh2 {[%clk 0:00:53.8]} 32... Qf4+ {[%clk
0:00:23.8]} 33. Qg3 {[%clk 0:00:52.7]} 33... Qf1 {[%clk 0:00:16.2]} 34. Re3
{[%clk 0:00:46.2]} 34... Qd1 {[%clk 0:00:09.6]} 35. Rc7 {[%clk 0:00:44.4]} 35...
Rf1 {[%clk 0:00:08]} 36. Qxg7# {[%clk 0:00:43.1]} 1-0

[Event "Betsys MČR v online bleskovém šachu 2021"]
[Site "Chess.com"]
[Date "2021.04.17"]
[Round "6"]
[White "KatkaZ"]
[Black "indebol"]
[Result "1-0"]
[WhiteElo "1861"]
[BlackElo "1544"]
[TimeControl "180+1"]
[EndTime "9:57:03 PDT"]
[Termination "Uživatel KatkaZ zvítězil matem"]

1. Nf3 {[%clk 0:03:00.9]} 1... Nf6 {[%clk 0:02:58.3]} 2. g3 {[%clk 0:03:00.6]}
2... g6 {[%clk 0:02:58.6]} 3. Bg2 {[%clk 0:03:01.1]} 3... Bg7 {[%clk 0:02:59.5]}
4. d3 {[%clk 0:03:01.3]} 4... c6 {[%clk 0:02:56.4]} 5. Nbd2 {[%clk 0:03:01.7]}
5... d5 {[%clk 0:02:56.3]} 6. e4 {[%clk 0:03:00.7]} 6... dxe4 {[%clk 0:02:54]}
7. dxe4 {[%clk 0:03:00.2]} 7... O-O {[%clk 0:02:53.4]} 8. O-O {[%clk 0:02:59.6]}
8... Bg4 {[%clk 0:02:52.6]} 9. h3 {[%clk 0:02:58.9]} 9... Bd7 {[%clk 0:02:51.9]}
10. c3 {[%clk 0:02:57.9]} 10... Na6 {[%clk 0:02:44.3]} 11. Qc2 {[%clk
0:02:47.4]} 11... Nc7 {[%clk 0:02:41]} 12. b4 {[%clk 0:02:46.5]} 12... a5 {[%clk
0:02:33.5]} 13. a3 {[%clk 0:02:42.2]} 13... axb4 {[%clk 0:02:33.2]} 14. cxb4
{[%clk 0:02:41]} 14... Nxe4 {[%clk 0:02:22.2]} 15. Nxe4 {[%clk 0:02:39.4]} 15...
Bxa1 {[%clk 0:02:21.6]} 16. Bb2 {[%clk 0:02:25.5]} 16... Bxb2 {[%clk 0:02:20.9]}
17. Qxb2 {[%clk 0:02:24.9]} 17... Nd5 {[%clk 0:02:19.4]} 18. Rd1 {[%clk
0:02:15.9]} 18... Qc8 {[%clk 0:02:09.6]} 19. Kh2 {[%clk 0:02:14.6]} 19... Bf5
{[%clk 0:02:04.1]} 20. Nc5 {[%clk 0:02:01.8]} 20... b6 {[%clk 0:01:56.5]} 21.
Nb3 {[%clk 0:02:00.5]} 21... Qa6 {[%clk 0:01:47]} 22. Ra1 {[%clk 0:01:43.6]}
22... Ra7 {[%clk 0:01:44.9]} 23. Nbd4 {[%clk 0:01:36.5]} 23... Bd3 {[%clk
0:01:32.6]} 24. Nxc6 {[%clk 0:01:30.7]} 24... Rc7 {[%clk 0:01:24.3]} 25. Nce5
{[%clk 0:01:11.5]} 25... Be4 {[%clk 0:01:15.9]} 26. Re1 {[%clk 0:01:08.4]} 26...
f5 {[%clk 0:01:12]} 27. Bf1 {[%clk 0:00:49.5]} 27... Qa4 {[%clk 0:01:03.4]} 28.
Ng5 {[%clk 0:00:48.2]} 28... Rc2 {[%clk 0:01:01.3]} 29. Qd4 {[%clk 0:00:43.7]}
29... Qc6 {[%clk 0:00:52]} 30. Nxc6 {[%clk 0:00:36.7]} 30... Nxb4 {[%clk
0:00:40.4]} 31. Nxb4 {[%clk 0:00:33.1]} 31... Rc5 {[%clk 0:00:36]} 32. Bc4+
{[%clk 0:00:30.2]} 32... Bd5 {[%clk 0:00:30.4]} 33. Nxd5 {[%clk 0:00:28.2]}
33... e6 {[%clk 0:00:22.6]} 34. Ne7# {[%clk 0:00:24.7]} 1-0

[Event "Betsys MČR v online bleskovém šachu 2021"]
[Site "Chess.com"]
[Date "2021.04.17"]
[Round "6"]
[White "karimaster100"]
[Black "Diamantidis_13"]
[Result "1/2-1/2"]
[WhiteElo "2265"]
[BlackElo "2441"]
[TimeControl "180+1"]
[EndTime "9:57:04 PDT"]
[Termination "Remíza opakováním pozice"]

1. Nf3 {[%clk 0:03:00.9]} 1... Nf6 {[%clk 0:02:59.2]} 2. g3 {[%clk 0:03:00.7]}
2... b6 {[%clk 0:02:57.9]} 3. Bg2 {[%clk 0:03:00.1]} 3... Bb7 {[%clk 0:02:58.3]}
4. c4 {[%clk 0:03:00.5]} 4... e6 {[%clk 0:02:54.2]} 5. O-O {[%clk 0:03:00.3]}
5... Be7 {[%clk 0:02:54]} 6. d4 {[%clk 0:02:59.7]} 6... O-O {[%clk 0:02:52.8]}
7. d5 {[%clk 0:02:59.6]} 7... a5 {[%clk 0:02:44.7]} 8. Nc3 {[%clk 0:02:58.1]}
8... Bb4 {[%clk 0:02:42.1]} 9. Nd4 {[%clk 0:02:43.5]} 9... Bxc3 {[%clk
0:02:39.5]} 10. bxc3 {[%clk 0:02:42.4]} 10... e5 {[%clk 0:02:37.5]} 11. Nf5
{[%clk 0:02:34.8]} 11... d6 {[%clk 0:02:33.2]} 12. e4 {[%clk 0:02:30.4]} 12...
Bc8 {[%clk 0:02:20.1]} 13. Ne3 {[%clk 0:02:26.2]} 13... Nbd7 {[%clk 0:02:10.8]}
14. Ba3 {[%clk 0:02:23.6]} 14... Re8 {[%clk 0:02:09.1]} 15. Qd3 {[%clk
0:02:21.6]} 15... Ba6 {[%clk 0:01:55.5]} 16. Rae1 {[%clk 0:02:09]} 16... Nf8
{[%clk 0:01:41.8]} 17. f4 {[%clk 0:02:03.7]} 17... N8d7 {[%clk 0:01:26.7]} 18.
Nf5 {[%clk 0:01:54.4]} 18... exf4 {[%clk 0:01:07.2]} 19. gxf4 {[%clk 0:01:46.6]}
19... g6 {[%clk 0:00:57.6]} 20. Ng3 {[%clk 0:01:44.2]} 20... Re7 {[%clk
0:00:41.5]} 21. e5 {[%clk 0:01:27.7]} 21... Ne8 {[%clk 0:00:36.5]} 22. e6 {[%clk
0:01:24.6]} 22... Nc5 {[%clk 0:00:33.9]} 23. Bxc5 {[%clk 0:01:23.9]} 23... dxc5
{[%clk 0:00:34.8]} 24. f5 {[%clk 0:01:24]} 24... Nd6 {[%clk 0:00:20.3]} 25. fxg6
{[%clk 0:01:21.1]} 25... fxg6 {[%clk 0:00:18.5]} 26. Rf4 {[%clk 0:01:13.7]}
26... Qe8 {[%clk 0:00:15.6]} 27. Ref1 {[%clk 0:01:11.4]} 27... Qa4 {[%clk
0:00:15.6]} 28. Qf3 {[%clk 0:00:52.6]} 28... Qe8 {[%clk 0:00:08.5]} 29. Qd3
{[%clk 0:00:39.9]} 29... Qa4 {[%clk 0:00:07.2]} 30. Qf3 {[%clk 0:00:37.7]} 30...
Qe8 {[%clk 0:00:07]} 31. Qd3 {[%clk 0:00:30.4]} 1/2-1/2

[Event "Betsys MČR v online bleskovém šachu 2021"]
[Site "Chess.com"]
[Date "2021.04.17"]
[Round "6"]
[White "AdeeJa"]
[Black "matej-c"]
[Result "0-1"]
[WhiteElo "1601"]
[BlackElo "1961"]
[TimeControl "180+1"]
[EndTime "9:57:04 PDT"]
[Termination "Uživatel matej-c zvítězil na čas"]

1. e4 {[%clk 0:03:00.9]} 1... c6 {[%clk 0:02:59.9]} 2. d4 {[%clk 0:03:00]} 2...
d5 {[%clk 0:03:00.8]} 3. exd5 {[%clk 0:02:59.8]} 3... cxd5 {[%clk 0:03:01.7]} 4.
c4 {[%clk 0:02:59.9]} 4... Nf6 {[%clk 0:03:01.9]} 5. Nc3 {[%clk 0:02:59.8]} 5...
g6 {[%clk 0:03:02.1]} 6. Bf4 {[%clk 0:02:52]} 6... Bg7 {[%clk 0:02:58.8]} 7. Qd2
{[%clk 0:02:50.7]} 7... Nc6 {[%clk 0:02:55.2]} 8. c5 {[%clk 0:02:41.2]} 8... Ne4
{[%clk 0:02:52.3]} 9. Nxe4 {[%clk 0:02:38.8]} 9... dxe4 {[%clk 0:02:53.2]} 10.
d5 {[%clk 0:02:37.6]} 10... Nd4 {[%clk 0:02:43.4]} 11. d6 {[%clk 0:02:24.6]}
11... O-O {[%clk 0:02:33.9]} 12. dxe7 {[%clk 0:02:08.7]} 12... Qxe7 {[%clk
0:02:33.5]} 13. Bd6 {[%clk 0:02:08.7]} 13... Qh4 {[%clk 0:02:21.1]} 14. Bxf8
{[%clk 0:02:04.4]} 14... e3 {[%clk 0:02:21.3]} 15. Qd3 {[%clk 0:01:28.3]} 15...
Qxf2+ {[%clk 0:02:09.5]} 16. Kd1 {[%clk 0:01:27.4]} 16... Bf5 {[%clk 0:02:04.8]}
17. Nh3 {[%clk 0:01:13.6]} 17... Qxb2 {[%clk 0:01:57.7]} 18. Rb1 {[%clk
0:00:36.9]} 18... Bg4+ {[%clk 0:01:30.1]} 19. Be2 {[%clk 0:00:23.2]} 19... Bxe2+
{[%clk 0:01:26.1]} 20. Ke1 {[%clk 0:00:14.8]} 20... Qa3 {[%clk 0:01:05.8]} 21.
Qxa3 {[%clk 0:00:14]} 21... Nc2+ {[%clk 0:01:04.4]} 22. Kxe2 {[%clk 0:00:14.2]}
22... Nxa3 {[%clk 0:01:04.5]} 23. Rb3 {[%clk 0:00:13.6]} 23... Bxf8 {[%clk
0:01:02.1]} 24. Rxa3 {[%clk 0:00:11.4]} 24... Bxc5 {[%clk 0:01:02.5]} 25. Rc3
{[%clk 0:00:10.8]} 25... Bb6 {[%clk 0:01:02.7]} 26. Nf4 {[%clk 0:00:09.7]} 26...
Rd8 {[%clk 0:01:00.1]} 27. Rd1 {[%clk 0:00:09.1]} 27... Re8 {[%clk 0:00:59.6]}
28. Rd7 {[%clk 0:00:08.3]} 28... h5 {[%clk 0:00:56]} 29. Nd5 {[%clk 0:00:08.3]}
29... Ba5 {[%clk 0:00:54.6]} 30. Rd3 {[%clk 0:00:05.4]} 30... Kf8 {[%clk
0:00:47.2]} 31. Nf6 {[%clk 0:00:04.7]} 31... Rc8 {[%clk 0:00:45.9]} 32. Ne4
{[%clk 0:00:02.9]} 32... Bb6 {[%clk 0:00:44.5]} 33. Nd6 {[%clk 0:00:01.5]} 33...
Rc2+ {[%clk 0:00:44.2]} 34. Kf3 {[%clk 0:00:01.1]} 34... Rf2+ {[%clk 0:00:44]}
0-1

[Event "Betsys MČR v online bleskovém šachu 2021"]
[Site "Chess.com"]
[Date "2021.04.17"]
[Round "6"]
[White "TheRigos"]
[Black "JakubPulpan"]
[Result "1-0"]
[WhiteElo "2576"]
[BlackElo "2709"]
[TimeControl "180+1"]
[EndTime "9:57:05 PDT"]
[Termination "Uživatel TheRigos zvítězil matem"]

1. e4 {[%clk 0:03:00.9]} 1... c5 {[%clk 0:02:58.9]} 2. Nf3 {[%clk 0:03:00.9]}
2... Nc6 {[%clk 0:02:54.9]} 3. d4 {[%clk 0:03:01.2]} 3... cxd4 {[%clk
0:02:55.3]} 4. Nxd4 {[%clk 0:03:02.1]} 4... g6 {[%clk 0:02:55.9]} 5. Nc3 {[%clk
0:03:01.1]} 5... Bg7 {[%clk 0:02:55.9]} 6. Be3 {[%clk 0:03:01.7]} 6... Nf6
{[%clk 0:02:56.2]} 7. Bc4 {[%clk 0:03:01.8]} 7... O-O {[%clk 0:02:55.4]} 8. Bb3
{[%clk 0:03:01]} 8... e6 {[%clk 0:02:46.2]} 9. f4 {[%clk 0:02:36.4]} 9... d5
{[%clk 0:02:45.1]} 10. e5 {[%clk 0:02:36.7]} 10... Nd7 {[%clk 0:02:13.7]} 11.
O-O {[%clk 0:02:33.9]} 11... Nxd4 {[%clk 0:02:08.6]} 12. Bxd4 {[%clk 0:02:33.9]}
12... b6 {[%clk 0:02:09.3]} 13. Rf3 {[%clk 0:02:14.6]} 13... Bb7 {[%clk
0:02:01.9]} 14. Qe2 {[%clk 0:01:57.1]} 14... Nc5 {[%clk 0:01:10.9]} 15. Rd1
{[%clk 0:01:43.3]} 15... a5 {[%clk 0:01:05.5]} 16. a4 {[%clk 0:01:37.7]} 16...
Rc8 {[%clk 0:01:00.5]} 17. Qf2 {[%clk 0:01:28.1]} 17... Bc6 {[%clk 0:00:49.6]}
18. g4 {[%clk 0:01:24.7]} 18... f5 {[%clk 0:00:42.5]} 19. g5 {[%clk 0:01:03.3]}
19... Qe7 {[%clk 0:00:31.4]} 20. h4 {[%clk 0:01:00.6]} 20... Ne4 {[%clk
0:00:17.9]} 21. Qe3 {[%clk 0:00:57.7]} 21... Nxc3 {[%clk 0:00:14.9]} 22. bxc3
{[%clk 0:00:54]} 22... b5 {[%clk 0:00:15.3]} 23. Bc5 {[%clk 0:00:54.3]} 23...
Qb7 {[%clk 0:00:12.6]} 24. axb5 {[%clk 0:00:52.6]} 24... Bxb5 {[%clk 0:00:11.6]}
25. h5 {[%clk 0:00:39.9]} 25... Rxc5 {[%clk 0:00:11.4]} 26. Qxc5 {[%clk
0:00:40.2]} 26... Rc8 {[%clk 0:00:12.1]} 27. Qd6 {[%clk 0:00:37.1]} 27... Kf7
{[%clk 0:00:06.3]} 28. Rxd5 {[%clk 0:00:36.6]} 28... Bf8 {[%clk 0:00:05.9]} 29.
Rxb5 {[%clk 0:00:31.6]} 29... Qxb5 {[%clk 0:00:06.8]} 30. Qxe6+ {[%clk
0:00:28.8]} 30... Kg7 {[%clk 0:00:07.1]} 31. h6+ {[%clk 0:00:29.2]} 31... Kh8
{[%clk 0:00:07.4]} 32. Qg8# {[%clk 0:00:29.8]} 1-0

[Event "Betsys MČR v online bleskovém šachu 2021"]
[Site "Chess.com"]
[Date "2021.04.17"]
[Round "6"]
[White "Tobish"]
[Black "jsulc"]
[Result "0-1"]
[WhiteElo "1690"]
[BlackElo "2076"]
[TimeControl "180+1"]
[EndTime "9:57:05 PDT"]
[Termination "Uživatel jsulc zvítězil po vzdání soupeře"]

1. e4 {[%clk 0:03:00.9]} 1... e5 {[%clk 0:02:59.9]} 2. Nf3 {[%clk 0:03:00.1]}
2... Nc6 {[%clk 0:03:00.2]} 3. d4 {[%clk 0:02:59.8]} 3... exd4 {[%clk
0:02:59.8]} 4. Nxd4 {[%clk 0:03:00.7]} 4... Nf6 {[%clk 0:02:58.9]} 5. Nc3 {[%clk
0:02:51.7]} 5... Bb4 {[%clk 0:02:57.5]} 6. Bg5 {[%clk 0:02:47.9]} 6... h6 {[%clk
0:02:53.9]} 7. Bxf6 {[%clk 0:02:24.8]} 7... Qxf6 {[%clk 0:02:54.8]} 8. Nb5
{[%clk 0:02:16.6]} 8... Ba5 {[%clk 0:02:02.5]} 9. Qd2 {[%clk 0:01:23.5]} 9... a6
{[%clk 0:01:59.6]} 10. Na3 {[%clk 0:01:22.5]} 10... O-O {[%clk 0:01:49.2]} 11.
Bd3 {[%clk 0:01:18.7]} 11... d6 {[%clk 0:01:44.3]} 12. O-O {[%clk 0:01:18.5]}
12... Ne5 {[%clk 0:01:39.2]} 13. Nc4 {[%clk 0:01:13.1]} 13... Nxc4 {[%clk
0:01:32.9]} 14. Bxc4 {[%clk 0:01:12.4]} 14... Bxc3 {[%clk 0:01:32.4]} 15. bxc3
{[%clk 0:01:12.6]} 15... Bd7 {[%clk 0:01:27.6]} 16. Rab1 {[%clk 0:01:08.9]}
16... b6 {[%clk 0:01:23.9]} 17. Bd5 {[%clk 0:01:08]} 17... Rad8 {[%clk
0:01:18.9]} 18. Rfe1 {[%clk 0:00:54.2]} 18... Rfe8 {[%clk 0:01:18.3]} 19. Bc4
{[%clk 0:00:42]} 19... b5 {[%clk 0:01:15]} 20. Bd3 {[%clk 0:00:42.2]} 20... Bc6
{[%clk 0:01:11.5]} 21. f3 {[%clk 0:00:39.4]} 21... Re5 {[%clk 0:01:09.8]} 22. a4
{[%clk 0:00:35.4]} 22... bxa4 {[%clk 0:01:06.8]} 23. Bxa6 {[%clk 0:00:28.8]}
23... Rc5 {[%clk 0:01:04.2]} 24. c4 {[%clk 0:00:19.1]} 24... Ra8 {[%clk
0:00:59.3]} 25. Bb5 {[%clk 0:00:18.8]} 25... Bxb5 {[%clk 0:00:56.8]} 26. cxb5
{[%clk 0:00:17.9]} 26... a3 {[%clk 0:00:54.4]} 27. Ra1 {[%clk 0:00:16.1]} 27...
Qb2 {[%clk 0:00:43.5]} 28. Rec1 {[%clk 0:00:14.2]} 28... Qxb5 {[%clk 0:00:38.7]}
29. Kh1 {[%clk 0:00:14.5]} 29... a2 {[%clk 0:00:35.4]} 30. Qd4 {[%clk
0:00:11.8]} 30... Qc4 {[%clk 0:00:31.9]} 31. Qb2 {[%clk 0:00:09.7]} 31... Rb5
{[%clk 0:00:29.5]} 0-1